[Event "33rd Pula Open 2019"]
[Site "Pula"]
[Date "2019.06.25"]
[Round "5.14"]
[White "Biti, Ozren"]
[Black "Blagojevic, Marijan"]
[Result "1/2-1/2"]
[ECO "B24"]
[WhiteElo "2374"]
[BlackElo "2192"]
[Annotator "NA"]
[PlyCount "108"]
[EventDate "2019.06.22"]
[EventType "swiss"]
[EventCountry "CRO"]
[SourceTitle "playchess.com"]
[Source "ChessBase"]
[SourceQuality "1"]
[TimeControl "5400+30"]

1. e4 {[%emt 0:00:30]} c5 {[%emt 0:00:30]} 2. Nc3 {[%emt 0:00:00]} a6 {[%emt 0:00:30]} 3. g3 {[%emt 0:02:00]} Nc6 {[%emt 0:00:30]} 4. Bg2 {[%emt 0:00:30]} g6 {[%emt 0:00:30]} 5. d3 {[%emt 0:02:30]} Bg7 {[%emt 0:01:30]} 6. f4 {[%emt 0:02:30]} d6 {[%emt 0:00:30]} 7. Nf3 {[%emt 0:02:30]} Bg4 {[%emt 0:02:30]} 8. Nd5 {[%emt 0:05:30]} Nd4 {[%emt 0:02:30]} 9. Ne3 {[%emt 0:09:30]} Bxf3 {[%emt 0:00:30]} 10. Bxf3 {[%emt 0:00:30]} Nxf3+ {[%emt 0:01:30]} 11. Qxf3 {[%emt 0:00:00]} Qc7 {[%emt 0:05:30]} 12. O-O {[%emt 0:06:00]} e6 {[%emt 0:20:30]} 13. Nc4 {[%emt 0:13:30]} O-O-O {[%emt 0:07:30]} 14. e5 {[%emt 0:07:30]} d5 {[%emt 0:01:30]} 15. Nd6+ {[%emt 0:00:30]} Kb8 {[%emt 0:03:30]} 16. c4 {[%emt 0:05:30]} dxc4 {[%emt 0:08:30]} 17. dxc4 {[%emt 0:04:30]} Bf8 {[%emt 0:01:30]} 18. Ne4 {[%emt 0:05:30]} Ne7 {[%emt 0:04:30]} 19. b3 {[%emt 0:05:30]} Nf5 {[%emt 0:01:30]} 20. Bb2 {[%emt 0:00:30]} h5 {[%emt 0:00:30]} 21. Rad1 {[%emt 0:03:30]} Be7 {[%emt 0:05:30]} 22. Nd6 {[%emt 0:02:30]} Rh7 {[%emt 0:05:30]} 23. Rd3 {[%emt 0:01:31]} Ka7 {[%emt 0:06:45]} 24. Rfd1 {[%emt 0:08:35]} Nxd6 {[%emt 0:05:45]} 25. exd6 {[%emt 0:00:07]} Rxd6 {[%emt 0:00:06]} 26. Rxd6 {[%emt 0:02:43]} Bxd6 {[%emt 0:00:07]} 27. Qd3 {[%emt 0:00:17]} Bf8 {[%emt 0:05:40]} 28. Be5 {[%emt 0:03:01]} Qe7 {[%emt 0:00:40]} 29. Qe3 {[%emt 0:03:28]} Qe8 {[%emt 0:00:58]} 30. Bd6 {[%emt 0:00:48]} Bxd6 {[%emt 0:00:43]} 31. Rxd6 {[%emt 0:00:02]} Qc8 {[%emt 0:00:59]} 32. b4 {[%emt 0:00:14]} b6 {[%emt 0:01:02]} 33. a3 {[%emt 0:02:42]} Qc7 {[%emt 0:03:45]} 34. bxc5 {[%emt 0:01:08]} bxc5 {[%emt 0:00:59]} 35. Qe5 {[%emt 0:00:51]} f6 {[%emt 0:01:52]} 36. Qxe6 {[%emt 0:00:20]} Re7 {[%emt 0:00:21]} 37. Rxa6+ {[%emt 0:00:27]} Kb7 {[%emt 0:00:02]} 38. Rb6+ {[%emt 0:00:38]} Qxb6 {[%emt 0:00:47]} 39. Qxe7+ {[%emt 0:00:08]} Ka6 {[%emt 0:00:18]} 40. Qe4 {[%emt 0:00:36]} Qd6 {[%emt 0:01:32]} 41. Qxg6 {[%emt 0:01:13]} h4 {[%emt 0:00:02]} 42. gxh4 {[%emt 0:00:34]} Qxf4 {[%emt 0:00:35]} 43. h5 {[%emt 0:00:32]} Qe3+ {[%emt 0:00:48]} 44. Kg2 {[%emt 0:00:12]} Qe2+ {[%emt 0:00:14]} 45. Kg3 {[%emt 0:00:32]} Qe3+ {[%emt 0:00:13]} 46. Kg4 {[%emt 0:00:31]} Qe2+ {[%emt 0:00:30]} 47. Kg3 {[%emt 0:00:34]} Qe3+ {[%emt 0:00:02]} 48. Kg4 {[%emt 0:00:22]} Qe2+ {[%emt 0:00:02]} 49. Kf4 {[%emt 0:00:43]} Qxh2+ {[%emt 0:00:15]} 50. Kf5 {[%emt 0:00:38]} Qe5+ {[%emt 0:00:01]} 51. Kg4 {[%emt 0:00:06]} Qe2+ {[%emt 0:00:05]} 52. Kg3 {[%emt 0:00:41]} Qe3+ {[%emt 0:00:02]} 53. Kg2 {[%emt 0:00:29]} Qe2+ {[%emt 0:00:04]} 54. Kg3 {[%emt 0:00:36]} Qe3+ {[%emt 0:00:04]} 1/2-1/2

[Event "33rd Pula Open 2019"]
[Site "Pula"]
[Date "2019.06.25"]
[Round "5.15"]
[White "Roorda, Thijs"]
[Black "Jelen, Igor"]
[Result "0-1"]
[ECO "D77"]
[WhiteElo "2111"]
[BlackElo "2353"]
[Annotator "NA"]
[PlyCount "94"]
[EventDate "2019.06.22"]
[EventType "swiss"]
[EventCountry "CRO"]
[SourceTitle "playchess.com"]
[Source "ChessBase"]
[SourceQuality "1"]
[TimeControl "5400+30"]

1. d4 {[%emt 0:00:30]} Nf6 {[%emt 0:00:30]} 2. Nf3 {[%emt 0:00:00]} g6 {[%emt 0:00:00]} 3. g3 {[%emt 0:00:00]} Bg7 {[%emt 0:00:00]} 4. Bg2 {[%emt 0:00:00]} O-O {[%emt 0:00:00]} 5. O-O {[%emt 0:00:00]} d5 {[%emt 0:00:00]} 6. c4 {[%emt 0:00:30]} dxc4 {[%emt 0:01:30]} 7. Na3 {[%emt 0:00:00]} Nc6 {[%emt 0:01:30]} 8. Nxc4 {[%emt 0:03:00]} Be6 {[%emt 0:00:30]} 9. b3 {[%emt 0:02:30]} a5 {[%emt 0:00:30]} 10. Bb2 {[%emt 0:02:30]} a4 {[%emt 0:00:30]} 11. Ng5 {[%emt 0:02:30]} Bd5 {[%emt 0:03:30]} 12. e4 {[%emt 0:01:30]} Bxc4 {[%emt 0:01:30]} 13. bxc4 {[%emt 0:00:00]} a3 {[%emt 0:00:30]} 14. Bc3 {[%emt 0:00:00]} Nd7 {[%emt 0:01:30]} 15. Nf3 {[%emt 0:20:30]} Nb6 {[%emt 0:15:30]} 16. Qd3 {[%emt 0:07:30]} Nxd4 {[%emt 0:09:30]} 17. Nxd4 {[%emt 0:09:30]} c5 {[%emt 0:16:30]} 18. Rfd1 {[%emt 0:07:30]} cxd4 {[%emt 0:00:30]} 19. Bxd4 {[%emt 0:00:00]} Bxd4 {[%emt 0:00:30]} 20. Qxd4 {[%emt 0:00:00]} Qxd4 {[%emt 0:00:30]} 21. Rxd4 {[%emt 0:00:30]} e5 {[%emt 0:00:30]} 22. Rd3 {[%emt 0:03:30]} Nxc4 {[%emt 0:00:30]} 23. Rb3 {[%emt 0:01:30]} Rfb8 {[%emt 0:10:30]} 24. Rd1 {[%emt 0:07:30]} b5 {[%emt 0:15:30]} 25. Bf1 {[%emt 0:03:30]} Nb2 {[%emt 0:01:16]} 26. Rd5 {[%emt 0:01:30]} b4 {[%emt 0:00:11]} 27. Rxe5 {[%emt 0:07:30]} Na4 {[%emt 0:06:08]} 28. Bc4 {[%emt 0:05:57]} Nc3 {[%emt 0:02:51]} 29. Re7 {[%emt 0:00:05]} Kh8 {[%emt 0:04:40]} 30. Rxf7 {[%emt 0:08:44]} Ra5 {[%emt 0:02:53]} 31. Rc7 {[%emt 0:01:16]} Nxe4 {[%emt 0:02:38]} 32. Re3 {[%emt 0:00:07]} Rc5 {[%emt 0:00:25]} 33. Rxc5 {[%emt 0:03:22]} Nxc5 {[%emt 0:00:05]} 34. Re5 {[%emt 0:00:59]} Rc8 {[%emt 0:00:46]} 35. Re1 {[%emt 0:00:28]} Kg7 {[%emt 0:00:14]} 36. Rb1 {[%emt 0:00:43]} Rb8 {[%emt 0:00:08]} 37. Kf1 {[%emt 0:00:15]} Ne4 {[%emt 0:00:41]} 38. Rd1 {[%emt 0:00:22]} Kf6 {[%emt 0:00:17]} 39. f4 {[%emt 0:00:47]} Rc8 {[%emt 0:01:18]} 40. Bb3 {[%emt 0:01:14]} Rc3 {[%emt 0:00:53]} 41. Rd7 {[%emt 0:00:59]} g5 {[%emt 0:01:20]} 42. Rb7 {[%emt 0:01:34]} Nd2+ {[%emt 0:00:33]} 43. Ke2 {[%emt 0:00:09]} Nxb3 {[%emt 0:00:07]} 44. Rb6+ {[%emt 0:00:47]} Kf5 {[%emt 0:00:38]} 45. axb3 {[%emt 0:00:36]} Rxb3 {[%emt 0:00:15]} 46. Rb5+ {[%emt 0:00:10]} Ke4 {[%emt 0:00:26]} 47. Kd2 {[%emt 0:00:20]} a2 {[%emt 0:00:16]} 0-1

[Event "33rd Pula Open 2019"]
[Site "Pula"]
[Date "2019.06.26"]
[Round "6.2"]
[White "Tratar, Marko"]
[Black "Medak, Bojan"]
[Result "1/2-1/2"]
[ECO "A53"]
[WhiteElo "2463"]
[BlackElo "2342"]
[Annotator "ChessBase"]
[PlyCount "87"]
[EventDate "2019.06.22"]
[EventType "swiss"]
[EventCountry "CRO"]
[SourceTitle "playchess.com"]
[Source "ChessBase"]
[SourceQuality "1"]
[TimeControl "5400+30"]

1. d4 {[%emt 0:00:30]} d6 {[%emt 0:00:30]} 2. c4 {[%emt 0:00:30]} e5 {[%emt 0:00:00]} 3. Nc3 {[%emt 0:00:30]} exd4 {[%emt 0:00:00]} 4. Qxd4 {[%emt 0:00:30]} Nc6 {[%emt 0:00:30]} 5. Qd2 {[%emt 0:00:00]} Nf6 {[%emt 0:00:30]} 6. e4 {[%emt 0:02:00]} a5 {[%emt 0:02:30]} 7. Bd3 {[%emt 0:04:30]} Ne5 {[%emt 0:01:30]} 8. Be2 {[%emt 0:32:30]} Be6 {[%emt 0:06:30]} 9. b3 {[%emt 0:05:30]} a4 {[%emt 0:03:30]} 10. f4 {[%emt 0:04:30]} Nc6 {[%emt 0:00:30]} 11. Rb1 {[%emt 0:01:30]} axb3 {[%emt 0:02:30]} 12. axb3 {[%emt 0:00:30]} g6 {[%emt 0:00:00]} 13. Nf3 {[%emt 0:06:30]} Bg7 {[%emt 0:00:00]} 14. O-O {[%emt 0:00:30]} O-O {[%emt 0:00:30]} 15. Bb2 {[%emt 0:00:30]} Re8 {[%emt 0:00:30]} 16. Rfe1 {[%emt 0:07:30]} Qb8 {[%emt 0:11:30]} 17. h3 {[%emt 0:06:30]} Qa7+ {[%emt 0:04:30]} 18. Kh2 {[%emt 0:00:30]} Qf2 {[%emt 0:02:30]} 19. Bf1 {[%emt 0:06:25]} Qxd2 {[%emt 0:13:30]} 20. Nxd2 {[%emt 0:00:01]} Nd4 {[%emt 0:00:30]} 21. g4 {[%emt 0:11:27]} h6 {[%emt 0:04:30]} 22. Kg3 {[%emt 0:02:22]} Bd7 {[%emt 0:05:30]} 23. Rbc1 {[%emt 0:03:10]} c5 {[%emt 0:02:30]} 24. Ra1 {[%emt 0:00:45]} Bc6 {[%emt 0:01:30]} 25. Rxa8 {[%emt 0:00:42]} Rxa8 {[%emt 0:00:30]} 26. Ra1 {[%emt 0:01:44]} Re8 {[%emt 0:10:30]} 27. Bd3 {[%emt 0:00:29]} g5 {[%emt 0:00:30]} 28. f5 {[%emt 0:00:21]} Nd7 {[%emt 0:00:30]} 29. Kf2 {[%emt 0:00:07]} Be5 {[%emt 0:00:30]} 30. Ra3 {[%emt 0:01:28]} Bf4 {[%emt 0:02:30]} 31. Nf1 {[%emt 0:00:44]} Nf6 {[%emt 0:05:48]} 32. Nd5 {[%emt 0:00:10]} Bxd5 {[%emt 0:02:11]} 33. exd5 {[%emt 0:00:13]} Ne4+ {[%emt 0:00:41]} 34. Kg2 {[%emt 0:01:02]} h5 {[%emt 0:04:29]} 35. gxh5 {[%emt 0:00:21]} Nf6 {[%emt 0:02:20]} 36. b4 {[%emt 0:00:30]} b6 {[%emt 0:00:40]} 37. Ra7 {[%emt 0:00:47]} Nxh5 {[%emt 0:02:02]} 38. Bxd4 {[%emt 0:00:33]} cxd4 {[%emt 0:00:05]} 39. Kf3 {[%emt 0:00:11]} Ng3 {[%emt 0:00:40]} 40. f6 {[%emt 0:00:32]} Nxf1 {[%emt 0:01:00]} 41. Bxf1 {[%emt 0:00:05]} d3 {[%emt 0:00:03]} 42. Re7 {[%emt 0:00:44]} Kf8 {[%emt 0:01:58]} 43. Rxe8+ {[%emt 0:00:39]} Kxe8 {[%emt 0:00:06]} 44. Bxd3 {[%emt 0:00:26]} 1/2-1/2

[Event "33rd Pula Open 2019"]
[Site "Pula"]
[Date "2019.06.26"]
[Round "6.4"]
[White "Suta, Andraz"]
[Black "Boric, Muhamed"]
[Result "0-1"]
[ECO "B03"]
[WhiteElo "2195"]
[BlackElo "2361"]
[Annotator "NA"]
[PlyCount "100"]
[EventDate "2019.06.22"]
[EventType "swiss"]
[EventCountry "CRO"]
[SourceTitle "playchess.com"]
[Source "ChessBase"]
[SourceQuality "1"]
[TimeControl "5400+30"]

1. e4 {[%emt 0:00:30]} Nf6 {[%emt 0:01:30]} 2. e5 {[%emt 0:00:30]} Nd5 {[%emt 0:00:30]} 3. d4 {[%emt 0:00:30]} d6 {[%emt 0:00:30]} 4. c4 {[%emt 0:07:30]} Nb6 {[%emt 0:00:00]} 5. exd6 {[%emt 0:00:30]} cxd6 {[%emt 0:00:00]} 6. Bd3 {[%emt 0:01:30]} g6 {[%emt 0:01:30]} 7. Ne2 {[%emt 0:00:30]} Bg7 {[%emt 0:00:00]} 8. Nbc3 {[%emt 0:00:30]} Nc6 {[%emt 0:00:00]} 9. Be3 {[%emt 0:00:30]} O-O {[%emt 0:08:30]} 10. O-O {[%emt 0:08:30]} e5 {[%emt 0:38:30]} 11. d5 {[%emt 0:01:30]} Nb4 {[%emt 0:00:30]} 12. c5 {[%emt 0:05:30]} N6xd5 {[%emt 0:00:30]} 13. Bc4 {[%emt 0:03:30]} Nxe3 {[%emt 0:11:30]} 14. fxe3 {[%emt 0:00:30]} d5 {[%emt 0:00:00]} 15. Bxd5 {[%emt 0:01:30]} Nxd5 {[%emt 0:00:00]} 16. Qxd5 {[%emt 0:00:30]} Be6 {[%emt 0:04:30]} 17. Qxb7 {[%emt 0:01:30]} Rb8 {[%emt 0:00:00]} 18. Qxa7 {[%emt 0:01:30]} Rxb2 {[%emt 0:00:00]} 19. Qa3 {[%emt 0:05:30]} Qd2 {[%emt 0:01:30]} 20. Rf2 {[%emt 0:09:30]} Bh6 {[%emt 0:01:30]} 21. Rd1 {[%emt 0:12:30]} Rxa2 {[%emt 0:00:30]} 22. Qb4 {[%emt 0:05:30]} Rb2 {[%emt 0:00:30]} 23. Qa3 {[%emt 0:08:30]} Qc2 {[%emt 0:01:30]} 24. Rc1 {[%emt 0:01:30]} Qb3 {[%emt 0:00:30]} 25. Qxb3 {[%emt 0:00:30]} Rxb3 {[%emt 0:00:00]} 26. Nd1 {[%emt 0:00:00]} Rc8 {[%emt 0:10:44]} 27. Ng3 {[%emt 0:00:00]} Rxe3 {[%emt 0:01:26]} 28. Nxe3 {[%emt 0:01:30]} Bxe3 {[%emt 0:00:06]} 29. Re1 {[%emt 0:00:00]} Bxf2+ {[%emt 0:00:15]} 30. Kxf2 {[%emt 0:00:00]} Rxc5 {[%emt 0:00:04]} 31. Ne4 {[%emt 0:00:30]} Rc2+ {[%emt 0:03:08]} 32. Kg3 {[%emt 0:00:30]} Kg7 {[%emt 0:00:54]} 33. Ng5 {[%emt 0:00:00]} Bd5 {[%emt 0:00:12]} 34. Rxe5 {[%emt 0:00:00]} Rxg2+ {[%emt 0:00:13]} 35. Kf4 {[%emt 0:03:30]} h6 {[%emt 0:02:08]} 36. Rxd5 {[%emt 0:00:30]} hxg5+ {[%emt 0:00:07]} 37. Kf3 {[%emt 0:00:30]} Rxh2 {[%emt 0:00:06]} 38. Rxg5 {[%emt 0:00:30]} f5 {[%emt 0:00:22]} 39. Rg1 {[%emt 0:00:30]} Kf6 {[%emt 0:02:25]} 40. Ra1 {[%emt 0:00:00]} Rb2 {[%emt 0:01:08]} 41. Kf4 {[%emt 0:00:00]} g5+ {[%emt 0:00:07]} 42. Kf3 {[%emt 0:00:00]} Rb3+ {[%emt 0:00:08]} 43. Kf2 {[%emt 0:00:00]} g4 {[%emt 0:00:00]} 44. Ra5 {[%emt 0:00:30]} Kg5 {[%emt 0:00:44]} 45. Rc5 {[%emt 0:00:30]} g3+ {[%emt 0:00:22]} 46. Kg2 {[%emt 0:00:30]} Kg4 {[%emt 0:00:09]} 47. Rc8 {[%emt 0:00:00]} Rb2+ {[%emt 0:00:11]} 48. Kg1 {[%emt 0:00:00]} f4 {[%emt 0:00:05]} 49. Ra8 {[%emt 0:00:30]} Rb1+ {[%emt 0:00:45]} 50. Kg2 {[%emt 0:00:00]} f3# {[%emt 0:00:09]} 0-1

[Event "33rd Pula Open 2019"]
[Site "Pula"]
[Date "2019.06.26"]
[Round "6.5"]
[White "Zelcic, Robert"]
[Black "Franciskovic, Borka"]
[Result "1-0"]
[ECO "B15"]
[WhiteElo "2518"]
[BlackElo "2261"]
[Annotator "ChessBase"]
[PlyCount "59"]
[EventDate "2019.06.22"]
[EventType "swiss"]
[EventCountry "CRO"]
[SourceTitle "playchess.com"]
[Source "ChessBase"]
[SourceQuality "1"]
[TimeControl "5400+30"]

1. e4 {[%emt 0:00:30]} c6 {[%emt 0:00:30]} 2. d4 {[%emt 0:00:00]} d5 {[%emt 0:00:00]} 3. Nc3 {[%emt 0:00:00]} dxe4 {[%emt 0:00:00]} 4. Nxe4 {[%emt 0:00:00]} Nf6 {[%emt 0:00:00]} 5. Nxf6+ {[%emt 0:00:00]} exf6 {[%emt 0:00:00]} 6. c3 {[%emt 0:00:00]} Bd6 {[%emt 0:00:30]} 7. Bd3 {[%emt 0:00:00]} O-O {[%emt 0:00:00]} 8. Qc2 {[%emt 0:00:30]} Re8+ {[%emt 0:00:00]} 9. Ne2 {[%emt 0:00:00]} h5 {[%emt 0:00:30]} 10. O-O {[%emt 0:00:00]} h4 {[%emt 0:02:30]} 11. h3 {[%emt 0:00:30]} Nd7 {[%emt 0:00:30]} 12. Bd2 {[%emt 0:00:30]} Nf8 {[%emt 0:06:30]} 13. Rae1 {[%emt 0:01:30]} g6 {[%emt 0:22:30]} 14. c4 {[%emt 0:09:30]} f5 {[%emt 0:13:30]} 15. b4 {[%emt 0:10:30]} Be6 {[%emt 0:09:30]} 16. Bc3 {[%emt 0:00:30]} f4 {[%emt 0:04:30]} 17. f3 {[%emt 0:00:30]} Bc7 {[%emt 0:11:30]} 18. Kh1 {[%emt 0:16:30]} Qd7 {[%emt 0:13:04]} 19. Nc1 {[%emt 0:04:30]} b5 {[%emt 0:03:38]} 20. d5 {[%emt 0:00:30]} cxd5 {[%emt 0:01:00]} 21. cxd5 {[%emt 0:01:30]} Bxd5 {[%emt 0:04:03]} 22. Qf2 {[%emt 0:00:00]} f6 {[%emt 0:03:46]} 23. Bxf6 {[%emt 0:01:00]} Rxe1 {[%emt 0:01:42]} 24. Rxe1 {[%emt 0:00:30]} Bd8 {[%emt 0:00:32]} 25. Ba1 {[%emt 0:01:30]} Bc4 {[%emt 0:01:28]} 26. Qb2 {[%emt 0:00:30]} Qh7 {[%emt 0:00:14]} 27. Qd4 {[%emt 0:09:30]} Rc8 {[%emt 0:00:36]} 28. Bxc4+ {[%emt 0:00:30]} bxc4 {[%emt 0:00:30]} 29. Re8 {[%emt 0:00:00]} Bf6 {[%emt 0:00:56]} 30. Qd5+ {[%emt 0:00:00]} 1-0

[Event "33rd Pula Open 2019"]
[Site "Pula"]
[Date "2019.06.26"]
[Round "6.6"]
[White "Jazdanovs, Aleksandrs"]
[Black "Fercec, Nenad"]
[Result "1/2-1/2"]
[ECO "B80"]
[WhiteElo "2232"]
[BlackElo "2446"]
[Annotator "NA"]
[PlyCount "61"]
[EventDate "2019.06.22"]
[EventType "swiss"]
[EventCountry "CRO"]
[SourceTitle "playchess.com"]
[Source "ChessBase"]
[SourceQuality "1"]
[TimeControl "5400+30"]

1. e4 {[%emt 0:00:30]} c5 {[%emt 0:00:30]} 2. Nc3 {[%emt 0:01:30]} d6 {[%emt 0:00:00]} 3. Nf3 {[%emt 0:00:00]} Nf6 {[%emt 0:00:00]} 4. d4 {[%emt 0:00:00]} cxd4 {[%emt 0:00:30]} 5. Nxd4 {[%emt 0:00:00]} a6 {[%emt 0:00:00]} 6. Be3 {[%emt 0:00:00]} e6 {[%emt 0:00:00]} 7. f3 {[%emt 0:00:30]} b5 {[%emt 0:00:30]} 8. Qd2 {[%emt 0:00:00]} Bb7 {[%emt 0:00:30]} 9. g4 {[%emt 0:00:00]} Nfd7 {[%emt 0:00:00]} 10. O-O-O {[%emt 0:01:30]} Nb6 {[%emt 0:00:00]} 11. Nb3 {[%emt 0:00:30]} b4 {[%emt 0:14:30]} 12. Ne2 {[%emt 0:00:30]} a5 {[%emt 0:44:30]} 13. Nc5 {[%emt 0:04:30]} Bc6 {[%emt 0:03:30]} 14. Nf4 {[%emt 0:06:30]} e5 {[%emt 0:05:30]} 15. Nd5 {[%emt 0:08:30]} Nxd5 {[%emt 0:12:52]} 16. exd5 {[%emt 0:00:30]} Bd7 {[%emt 0:00:45]} 17. Ne4 {[%emt 0:00:30]} Be7 {[%emt 0:00:27]} 18. f4 {[%emt 0:04:30]} exf4 {[%emt 0:01:21]} 19. Bxf4 {[%emt 0:00:30]} O-O {[%emt 0:01:57]} 20. Bd3 {[%emt 0:01:30]} Bxg4 {[%emt 0:02:10]} 21. Rdg1 {[%emt 0:05:30]} Bf3 {[%emt 0:02:02]} 22. Ng5 {[%emt 0:06:30]} Bxg5 {[%emt 0:06:34]} 23. Bxg5 {[%emt 0:00:00]} f6 {[%emt 0:01:28]} 24. Bh6 {[%emt 0:01:00]} Rf7 {[%emt 0:00:09]} 25. Bxg7 {[%emt 0:01:30]} Rxg7 {[%emt 0:00:13]} 26. Rxg7+ {[%emt 0:00:00]} Kxg7 {[%emt 0:00:03]} 27. Rg1+ {[%emt 0:00:00]} Kh8 {[%emt 0:00:05]} 28. Bxh7 {[%emt 0:02:30]} Kxh7 {[%emt 0:00:39]} 29. Qf4 {[%emt 0:02:30]} Bh5 {[%emt 0:02:29]} 30. Qf5+ {[%emt 0:00:30]} Kh6 {[%emt 0:00:03]} 31. Qf4+ {[%emt 0:00:00]} 1/2-1/2

[Event "33rd Pula Open 2019"]
[Site "Pula"]
[Date "2019.06.26"]
[Round "6.7"]
[White "Berezjuk, Sergej"]
[Black "Doncevic, Dario"]
[Result "1-0"]
[ECO "B06"]
[WhiteElo "2411"]
[BlackElo "2230"]
[Annotator "NA"]
[PlyCount "133"]
[EventDate "2019.06.22"]
[EventType "swiss"]
[EventCountry "CRO"]
[SourceTitle "playchess.com"]
[Source "ChessBase"]
[SourceQuality "1"]
[TimeControl "5400+30"]

1. Nf3 {[%emt 0:00:30]} g6 {[%emt 0:01:30]} 2. e4 {[%emt 0:00:00]} Bg7 {[%emt 0:00:30]} 3. d4 {[%emt 0:00:00]} d6 {[%emt 0:00:30]} 4. Bc4 {[%emt 0:00:30]} Nf6 {[%emt 0:01:30]} 5. Qe2 {[%emt 0:00:30]} O-O {[%emt 0:02:30]} 6. e5 {[%emt 0:01:30]} dxe5 {[%emt 0:00:30]} 7. dxe5 {[%emt 0:00:30]} Nd5 {[%emt 0:00:30]} 8. h3 {[%emt 0:03:30]} Be6 {[%emt 0:03:30]} 9. O-O {[%emt 0:04:30]} Nc6 {[%emt 0:00:30]} 10. Na3 {[%emt 0:14:30]} Qc8 {[%emt 0:27:30]} 11. Bb5 {[%emt 0:08:30]} Rd8 {[%emt 0:14:30]} 12. Re1 {[%emt 0:05:30]} Nb6 {[%emt 0:05:30]} 13. Bg5 {[%emt 0:05:30]} h6 {[%emt 0:05:30]} 14. Bh4 {[%emt 0:09:30]} Nd4 {[%emt 0:05:30]} 15. Nxd4 {[%emt 0:03:30]} Rxd4 {[%emt 0:00:00]} 16. Bxe7 {[%emt 0:03:30]} Nd5 {[%emt 0:01:00]} 17. Bc5 {[%emt 0:11:30]} Rh4 {[%emt 0:00:30]} 18. Qf3 {[%emt 0:00:30]} Rh5 {[%emt 0:09:02]} 19. Bf1 {[%emt 0:05:30]} Rf5 {[%emt 0:00:30]} 20. Qd1 {[%emt 0:00:30]} Rg5 {[%emt 0:00:30]} 21. h4 {[%emt 0:00:30]} Rxe5 {[%emt 0:00:30]} 22. Rxe5 {[%emt 0:00:30]} Bxe5 {[%emt 0:00:30]} 23. Bd4 {[%emt 0:00:30]} Bxd4 {[%emt 0:00:30]} 24. Qxd4 {[%emt 0:00:30]} c5 {[%emt 0:00:30]} 25. Qd2 {[%emt 0:00:30]} Qd8 {[%emt 0:00:30]} 26. Qxh6 {[%emt 0:00:30]} Qf6 {[%emt 0:00:30]} 27. c3 {[%emt 0:00:30]} Ne7 {[%emt 0:00:30]} 28. Bc4 {[%emt 0:00:30]} Rd8 {[%emt 0:00:30]} 29. Re1 {[%emt 0:00:30]} Nf5 {[%emt 0:06:10]} 30. Qg5 {[%emt 0:11:45]} Qxg5 {[%emt 0:00:33]} 31. hxg5 {[%emt 0:00:59]} Rd2 {[%emt 0:00:00]} 32. Bxe6 {[%emt 0:00:00]} fxe6 {[%emt 0:00:00]} 33. Nc4 {[%emt 0:00:59]} Rc2 {[%emt 0:00:00]} 34. Rxe6 {[%emt 0:00:45]} b5 {[%emt 0:00:30]} 35. Rxg6+ {[%emt 0:01:18]} Kh7 {[%emt 0:00:30]} 36. Rf6 {[%emt 0:00:35]} Ng7 {[%emt 0:00:30]} 37. Ne3 {[%emt 0:00:39]} Rxb2 {[%emt 0:00:30]} 38. Ra6 {[%emt 0:00:41]} Rb1+ {[%emt 0:00:30]} 39. Kh2 {[%emt 0:00:40]} Rc1 {[%emt 0:00:30]} 40. Rxa7 {[%emt 0:00:38]} Kg6 {[%emt 0:00:30]} 41. Ra5 {[%emt 0:00:42]} Rxc3 {[%emt 0:00:30]} 42. Rxb5 {[%emt 0:00:34]} Kxg5 {[%emt 0:01:12]} 43. f4+ {[%emt 0:01:16]} Kh5 {[%emt 0:00:08]} 44. Nd5 {[%emt 0:03:03]} Rc2 {[%emt 0:00:39]} 45. Nf6+ {[%emt 0:00:19]} Kg6 {[%emt 0:00:37]} 46. Ne4 {[%emt 0:00:15]} c4 {[%emt 0:00:29]} 47. Rg5+ {[%emt 0:00:00]} Kf7 {[%emt 0:00:35]} 48. Nd6+ {[%emt 0:00:22]} Ke7 {[%emt 0:00:38]} 49. Nxc4 {[%emt 0:00:30]} Ne6 {[%emt 0:00:38]} 50. Re5 {[%emt 0:00:00]} Rxc4 {[%emt 0:00:00]} 51. f5 {[%emt 0:00:26]} Kf6 {[%emt 0:00:03]} 52. Rxe6+ {[%emt 0:00:00]} Kxf5 {[%emt 0:00:44]} 53. Ra6 {[%emt 0:00:04]} Kg4 {[%emt 0:00:10]} 54. a4 {[%emt 0:00:06]} Rc2 {[%emt 0:00:00]} 55. a5 {[%emt 0:00:00]} Kg5 {[%emt 0:00:00]} 56. Ra8 {[%emt 0:00:07]} Ra2 {[%emt 0:00:38]} 57. a6 {[%emt 0:00:30]} Kg6 {[%emt 0:00:40]} 58. Kg3 {[%emt 0:00:34]} Ra4 {[%emt 0:00:05]} 59. Kf3 {[%emt 0:00:37]} Kg7 {[%emt 0:01:14]} 60. Ke3 {[%emt 0:02:34]} Ra2 {[%emt 0:00:51]} 61. Ra7+ {[%emt 0:00:08]} Kg6 {[%emt 0:02:09]} 62. Kd4 {[%emt 0:02:10]} Rxg2 {[%emt 0:01:50]} 63. Rc7 {[%emt 0:01:48]} Ra2 {[%emt 0:00:06]} 64. Rc6+ {[%emt 0:00:00]} Kf7 {[%emt 0:00:32]} 65. Kc5 {[%emt 0:00:00]} Ke7 {[%emt 0:01:30]} 66. Kb6 {[%emt 0:00:05]} Kd7 {[%emt 0:00:37]} 67. Kb7 {[%emt 0:00:30]} 1-0

[Event "33rd Pula Open 2019"]
[Site "Pula"]
[Date "2019.06.26"]
[Round "6.8"]
[White "Zufic, Miroslav"]
[Black "Rubil, Marko"]
[Result "1/2-1/2"]
[ECO "D02"]
[WhiteElo "2380"]
[BlackElo "2226"]
[Annotator "NA"]
[PlyCount "45"]
[EventDate "2019.06.22"]
[EventType "swiss"]
[EventCountry "CRO"]
[SourceTitle "playchess.com"]
[Source "ChessBase"]
[SourceQuality "1"]
[TimeControl "5400+30"]

1. Nf3 {[%emt 0:00:30]} d5 {[%emt 0:00:30]} 2. g3 {[%emt 0:01:30]} g6 {[%emt 0:00:30]} 3. Bg2 {[%emt 0:00:30]} Bg7 {[%emt 0:00:30]} 4. d4 {[%emt 0:00:30]} Nh6 {[%emt 0:00:30]} 5. O-O {[%emt 0:02:30]} Nf5 {[%emt 0:00:00]} 6. c3 {[%emt 0:00:30]} Nd6 {[%emt 0:06:00]} 7. Bf4 {[%emt 0:05:30]} Nd7 {[%emt 0:07:30]} 8. Qc1 {[%emt 0:13:30]} O-O {[%emt 0:11:30]} 9. Bh6 {[%emt 0:05:30]} Bxh6 {[%emt 0:01:30]} 10. Qxh6 {[%emt 0:00:30]} f6 {[%emt 0:00:00]} 11. Nfd2 {[%emt 0:09:30]} c6 {[%emt 0:29:00]} 12. e4 {[%emt 0:05:30]} Qb6 {[%emt 0:04:30]} 13. exd5 {[%emt 0:12:30]} Qxb2 {[%emt 0:00:30]} 14. Nb3 {[%emt 0:04:30]} cxd5 {[%emt 0:08:30]} 15. Bxd5+ {[%emt 0:09:30]} Kh8 {[%emt 0:00:00]} 16. Qe3 {[%emt 0:06:40]} e5 {[%emt 0:09:51]} 17. Qd2 {[%emt 0:12:45]} Qxd2 {[%emt 0:00:29]} 18. N1xd2 {[%emt 0:00:30]} Nb6 {[%emt 0:00:40]} 19. Bg2 {[%emt 0:00:22]} exd4 {[%emt 0:03:25]} 20. cxd4 {[%emt 0:01:14]} Be6 {[%emt 0:01:14]} 21. Rac1 {[%emt 0:01:19]} Rf7 {[%emt 0:00:31]} 22. Rfe1 {[%emt 0:02:27]} Bd5 {[%emt 0:00:37]} 23. Rc5 {[%emt 0:01:58]} 1/2-1/2